{"text_format":"1","workbook":"xlsx","n_sheets":17,"sheets":["表紙","PDF出力","はじめに","使用方法","判別法","様式1","様式2","様式3","様式4","直接放流区域諸元算出表","様式5（直接放流区域なし）","様式5（直接放流区域あり）","様式6作成要領","浸透施設諸元算出表","様式6","様式7","様式8"],"not_rendered":{"charts":0,"images":20,"macros":1,"external_links":0,"defined_names":13,"comments":1,"pivot_tables":0},"unopened":[],"bounds":{"document_bytes":16777216,"sheet_cells":100000,"rows_first":2000,"rows_last":500,"rows_between":2000,"halvings":0,"cell_chars":16384,"cell_head_chars":4096},"cells_cut":0,"cells_raw":0,"read":"whole","date_system":"1900"}

{"sheet":"表紙","index":0,"n_rows":39,"n_cols":4,"rows_kept":39,"cut":false,"hidden":false,"merged":[[6,1,11,29],[38,3,42,27]]}
[]
[]
[]
[]
[]
[]
[null,"特定都市河川浸水被害対策法に基づく\n雨水浸透阻害行為 許可申請様式"]
[]
[]
[]
[]
[]
[]
[]
[]
[]
[]
[]
[]
[]
[]
[]
[]
[]
[]
[]
[]
[]
[]
[]
[]
[]
[]
[]
[]
[]
[]
[]
[null,null,null,"令和７年１月\n\n和歌山県　県土整備部　河川下水道局　河川課"]

{"sheet":"PDF出力","index":1,"n_rows":20,"n_cols":4,"rows_kept":20,"cut":false,"hidden":false,"merged":[]}
[]
[null,"※本シートは、任意のシートをPDFとして出力する際に、必要に応じてご活用ください。"]
[]
[null,"手順１\nPDFとして出力したいシートを\n選択してください。",null,"手順２\n下記のいずれかのボタンを押してください。\n本エクセルと同じフォルダ内にPDFが出力されます。"]
[]
[]
[null,null,null,"【直接放流区域がない場合】"]
[null,null,null,"申請様式のPDFファイルにまとめて出力します。"]
[null,null,null,"PDFのファイル名は、本エクセルと同じ名前になります。"]
[]
[]
[]
[null,null,null,"【直接放流区域がある場合】"]
[null,null,null,"申請様式のPDFファイルにまとめて出力します。"]
[null,null,null,"PDFのファイル名は、本エクセルと同じ名前になります。"]
[]
[]
[]
[null,null,null,"選択したシートを個別のPDFファイルとして出力します。"]
[null,null,null,"PDFのファイル名は、各シートと同じ名前になります。"]

{"sheet":"はじめに","index":2,"n_rows":54,"n_cols":34,"rows_kept":54,"cut":false,"hidden":false,"merged":[[53,35,54,35],[27,0,27,36],[30,0,30,36],[3,7,5,30],[0,4,1,31],[19,1,19,34],[58,19,58,21],[58,32,58,34],[52,33,54,33],[52,20,54,20],[53,17,54,17]]}
[null,null,null,null,"雨水浸透阻害行為許可申請様式"]
[]
[]
[null,null,null,null,null,null,null,"特定都市河川浸水被害対策法に関する、\n雨水浸透阻害行為許可申請書の様式一式を作成します。"]
[]
[]
[]
["様式の内容は以下の通りです。"]
[]
[null,"様式－1　   　 　：　　　現況土地利用区分面積集計表（行為前）"]
[null,"様式－2　   　 　：　　　計画土地利用区分面積集計表（行為後）"]
[null,"様式－3　   　 　：　　　行為前後の土地利用集計表"]
[null,"様式－4　   　 　：　　　雨水浸透阻害行為前後の平均流出係数"]
[null,"様式－5　   　 　：　　　雨水浸透阻害行為前後の最大雨水流出量"]
[null,"様式－6　   　 　：　　　政令第9条第１項に規定する技術的基準に適合することを証する書類"]
[null,"様式－7　   　 　：　　　雨水浸透阻害行為許可事前相談書"]
[null,"様式－8　   　 　：　　　雨水貯留浸透施設の管理に関する実施計画書"]
[null,"別記様式第１号：　　　雨水浸水阻害行為に関する工事及び対策工事の計画説明書"]
[null,"別記様式第２   ：　　　雨水浸透阻害行為許可申請（協議）書"]
[null,"事前相談に必要な書類：様式－１～様式－３、様式－７\n許可申請に必要な書類：様式－１～様式－６、様式－８、別記様式第1号、別記様式第２"]
[null,"※別記様式第1号、別記様式第２は別途県ホームページからダウンロードしご作成ください。"]
[]
["様式には、例として以下の条件で数値が入力してあります。"]
["様式－１～様式－6は、入力が必要な項目を赤字で示していますので、該当箇所に数値を記入してください。"]
["（※数値を入力すると自動計算されます。）"]
["様式－7、8は、各シート右側の記入例にならって必要事項を入力してください。"]
[]
["～計算シートの詳しい使用方法については、次ページの「使用方法」をご覧ください～"]
[]
[]
["条件（例示）↓↓↓↓↓↓↓↓↓↓↓↓"]
[]
[null,null,null,"行為前",null,null,null,null,null,null,null,null,null,null,null,null,null,null,null,null,"行為後"]
[]
[]
[null,null,null,null,null,null,null,null,null,null,null,null,null,null,null,null,null,null,null,null,null,null,null,"宅地200㎡",null,null,null,null,null,null,"宅地200㎡"]
[]
[null,null,null,null,null,null,null,null,null,null,null,null,null,null,null,null,null,null,null,null,null,null,"●","━","━","━","●",null,null,"●","━","━","━","●"]
[null,null,null,null,null,null,null,null,"耕地1,100㎡　"]
[null,null,null,null,null,null,null,null,null,null,null,null,null,null,null,null,null,null,null,null,null,null,"宅地180㎡",null,null,null,null,null,null,null,"宅地180㎡"]
[null,null,null,null,null,null,null,null,null,null,null,null,null,null,null,null,null,null,null,null,null,null,null,null,null,null,null,"道路"]
[null,null,null,null,null,null,null,null,null,null,null,null,null,null,null,null,null,null,null,null,null,null,"●","━","━","━","●","170㎡",null,"●","━","━","━","●"]
[]
[null,null,null,null,null,null,null,null,null,null,null,null,"宅地190㎡",null,null,null,null,null,null,null,null,null,"宅地180㎡",null,null,null,null,null,null,null,"宅地180㎡"]
[]
[null,null,null,null,null,null,null,null,null,null,null,null,null,null,null,null,null,null,null,null,null,null,"●","━","━","━","●",null,null,"●","━","━","━","●"]
[]
[]
[null,null,null,null,"開発面積  ： 1,290㎡"]
[]
[null,null,null,null,"行  為  前 ：",null,null,null,"耕地1,100㎡（流出係数0.2）"]
[null,null,null,null,null,null,null,null,"宅地  190㎡（流出係数0.9）"]
[null,null,null,null,"行  為  後 ：",null,null,null,"宅地1,120㎡（流出係数0.9）"]
[null,null,null,null,null,null,null,null,"道路　170㎡（流出係数0.9）"]

{"sheet":"使用方法","index":3,"n_rows":37,"n_cols":41,"rows_kept":37,"cut":false,"hidden":false,"merged":[[1,23,2,35],[6,38,6,51],[8,38,8,51],[20,38,20,51],[27,3,28,33],[25,38,27,51],[20,3,21,33],[22,3,23,33],[33,35,34,52],[32,3,34,34],[4,40,4,48],[12,35,13,51],[10,3,14,33],[16,3,17,33],[4,12,4,22],[29,3,30,33]]}
[]
[null,null,null,null,null,null,null,null,null,null,null,null,null,null,null,null,null,null,null,null,null,null,null,"使　　　用　　　方　　　法"]
[]
[]
[null,null,null,null,null,null,null,null,null,null,null,null,"本Excelの使用方法",null,null,null,null,null,null,null,null,null,null,null,null,null,null,null,null,null,null,null,null,null,null,null,null,null,null,null,"作業目的"]
[]
[null,"1．",null,"判別法を参考に、様式－１に行為前の現況土地利用別面積を入力します。",null,null,null,null,null,null,null,null,null,null,null,null,null,null,null,null,null,null,null,null,null,null,null,null,null,null,null,null,null,null,null,null,null,null,"阻害行為前の現況土地利用別面積を確認"]
[]
[null,"２．",null,"判別法を参考に、様式－２に行為後の計画土地利用別面積を入力します。",null,null,null,null,null,null,null,null,null,null,null,null,null,null,null,null,null,null,null,null,null,null,null,null,null,null,null,null,null,null,null,null,null,null,"阻害行為後の計画土地利用別面積を確認"]
[]
[null,"３．",null,"上記１．２．の結果から、行為前後の土地利用集計により、阻害行為対象面積が様式－３に\n自動算出されます。（入力の必要なし）\n算出結果（様式－３：④欄の合計）より、雨水浸透阻害行為許可の対象となるか確認します。\n阻害行為対象面積が１，０００㎡（０．１ha）以上であれば雨水浸透阻害行為許可の対象となります。"]
[]
[null,null,null,null,null,null,null,null,null,null,null,null,null,null,null,null,null,null,null,null,null,null,null,null,null,null,null,null,null,null,null,null,null,null,null,"雨水浸透阻害行為許可の対象となるか判定"]
[]
[]
[]
[null,"４．",null,"様式－７に必要事項を記入し、和歌山県の担当窓口までご連絡ください。その際、県ホームページを参考に必要となる書類や図面をご準備ください。"]
[]
[]
[]
[null,"５．",null,"様式－４に行為区域位置の住所を入力してください。雨水浸透阻害行為前後の平均流出係数は自動算出されます。",null,null,null,null,null,null,null,null,null,null,null,null,null,null,null,null,null,null,null,null,null,null,null,null,null,null,null,null,null,null,null,null,null,null,"阻害行為前後の平均流出係数を算出"]
[]
[null,null,null,"法面を有する道路、鉄道線路、飛行場がある場合、同区域内の土地利用を面積により加重平均して算出した流出係数を入力してください。"]
[]
[]
[null,"６．",null,"様式－５（直接放流区域なし）で最大降雨強度を入力します。",null,null,null,null,null,null,null,null,null,null,null,null,null,null,null,null,null,null,null,null,null,null,null,null,null,null,null,null,null,null,null,null,null,null,"阻害行為前後の最大雨水流出量を算出\n（必要対策量および許容放流量を算出）"]
[null,null,null,"雨水浸透阻害行為前後の最大雨水流出量が自動算出されます。"]
[null,null,null,"なお、直接放流区域（雨水貯留浸透施設に流入しない区域）がある場合は、様式－５（直接放流区域あり）を使用してください。"]
[]
[null,null,null,"その際、直接放流区域からの流出量を考慮する必要があるため、直接放流区域諸元算定表に直接放流区域の面積を入力してください。"]
[]
[]
[null,"７．",null,"外部サイト：『調整池容量計算システム』を使用して雨水貯留浸透施設の能力を算出し、必要対策量を上回っているか確認します。（詳しくは様式－６作成要領をご覧ください。）\n『調整池容量計算システム』の算出結果を様式－６に記入します。"]
[null,null,null,null,null,null,null,null,null,null,null,null,null,null,null,null,null,null,null,null,null,null,null,null,null,null,null,null,null,null,null,null,null,null,null,"雨水貯留浸透施設の能力が必要対策量以上であるか判定"]
[]
[]
[null,"８．",null,"記入例を参考に、様式－８に必要事項を記入します。"]

{"sheet":"判別法","index":4,"n_rows":125,"n_cols":29,"rows_kept":125,"cut":false,"hidden":false,"merged":[[76,3,81,9],[76,10,81,27],[76,28,81,45],[76,0,99,2],[100,0,127,2],[114,3,127,9],[124,10,127,27],[124,28,127,45],[110,3,113,9],[110,10,113,27],[110,28,113,45],[114,28,123,45],[114,10,123,27],[82,3,89,9],[82,10,89,27],[82,28,89,45],[67,0,75,2],[67,3,71,9],[67,10,71,27],[67,28,71,45],[72,3,75,9],[72,10,75,27],[72,28,75,45],[0,0,1,4],[3,0,5,45],[6,0,10,45],[11,0,13,45],[15,0,16,12],[18,0,18,2],[18,3,18,9],[18,10,18,27],[18,28,18,45],[19,3,25,9],[19,10,25,27],[19,28,25,45],[19,0,59,2],[32,10,35,27],[32,28,35,45],[36,3,41,9],[42,28,47,45],[52,10,55,27],[36,10,41,27],[36,28,41,45],[26,3,31,9],[56,3,59,9],[56,10,59,27],[56,28,59,45],[48,28,51,45],[26,10,31,27],[52,3,55,9],[48,3,51,9],[48,10,51,27],[42,3,47,9],[42,10,47,27],[52,28,55,45],[26,28,31,45],[32,3,35,9],[63,0,64,12],[66,0,66,2],[66,3,66,9],[66,10,66,27],[66,28,66,45],[100,28,109,45],[100,10,109,27],[100,3,105,9],[90,3,99,9],[90,10,99,27],[90,28,99,45]]}
["考え方"]
[]
[]
["●特定都市河川流域において、1,000㎡以上の雨水浸透阻害行為を行う場合は、許可が必要となります。"]
[]
[]
["●雨水浸透阻害行為とは、雨水の流出量を現状より増加させる行為（行為前後で雨水流出量が増加する行為）をいいます。行為後においても、行為前より雨水流出量を増加させないように抑制することが基本的な考え方です。"]
[]
[]
[]
[]
["●現況及び計画の土地利用形態は、図面・写真等により、判別します。"]
[]
[]
[]
["土地利用の判別"]
[]
[]
[null,null,null,"土地利用の形態",null,null,null,null,null,null,"定　義",null,null,null,null,null,null,null,null,null,null,null,null,null,null,null,null,null,"留　意　事　項"]
["宅　地　等　に　該　当　す　る　土　地　",null,null,"①　宅地",null,null,null,null,null,null,"宅地は、次に掲げる建物（工作物を含む。以下同じ。）の用に供するための土地をいうもの。\nイ　現況において、建物の用に供している土地。\nロ　過去において、写真及び図面等で建物の用に供していたことが明らかな土地。\nハ　近い将来に宅地として利用するため、造成されている土地。",null,null,null,null,null,null,null,null,null,null,null,null,null,null,null,null,null,"宅地は、建物の屋根面積のほかに、庭等も含めた一団をもって宅地とする。"]
[]
[]
[]
[]
[]
[]
[null,null,null,"②　池沼",null,null,null,null,null,null,"常時、又は一時的に水面を有する池沼をいう。",null,null,null,null,null,null,null,null,null,null,null,null,null,null,null,null,null,"池沼の範囲は、池沼を形成する連続した斜面、壁面（直接流出となるエリア）の頂上までの範囲及び貯留に供する土提等がある場合は、それら施設敷地一体を含めた範囲とする。"]
[]
[]
[]
[]
[]
[null,null,null,"③　水路",null,null,null,null,null,null,"常時、又は一時的に水面を有する水路をいう。",null,null,null,null,null,null,null,null,null,null,null,null,null,null,null,null,null,"水路の範囲は、水路を形成する連続した斜面、壁面（直接流出となるエリア）の頂上までの範囲とする。"]
[]
[]
[]
[null,null,null,"④　ため池",null,null,null,null,null,null,"常時、又は一時的に水面を有するため池をいう。",null,null,null,null,null,null,null,null,null,null,null,null,null,null,null,null,null,"ため池の範囲は、ため池を形成する連続した斜面、壁面（直接流出となるエリア）の頂上までの範囲及び貯留に供する土提等がある場合はそれら施設敷地一体を含めた範囲とする。"]
[]
[]
[]
[]
[]
[null,null,null,"⑤⑥　道路",null,null,null,null,null,null,"一般の交通の用に供する道路をいう。道路法（昭和２７年法律第１８０号）に規定する道路かどうかは問わない。\n未舗装でも、一般の交通の用に供していれば道路とする。",null,null,null,null,null,null,null,null,null,null,null,null,null,null,null,null,null,"道路の範囲は、路肩から路肩までの範囲のほか、歩道、植樹帯、道路付帯施設が含まれる。\n法面は区分し整理する。"]
[]
[]
[]
[]
[]
[null,null,null,"⑦⑧　鉄道線路",null,null,null,null,null,null,"鉄道線路とは鉄道の敷地のうち、線路の敷地の範囲（高架の鉄道を含む）をいう。\n操車場は鉄道道路に含まれない。",null,null,null,null,null,null,null,null,null,null,null,null,null,null,null,null,null,"法面は区分し整理する。"]
[]
[]
[]
[null,null,null,"⑨⑩　飛行場",null,null,null,null,null,null,"飛行場は、空港・ヘリポート等（飛行場の外に設置された航空保安施設の敷地を含む）をいう。",null,null,null,null,null,null,null,null,null,null,null,null,null,null,null,null,null,"法面は区分し整理する。"]
[]
[]
[]
[null,null,null,"⑪　太陽光パネル",null,null,null,null,null,null,"太陽光発電施設の用に供するための土地をいう。"]
[]
[]
[]
[]
[]
[]
["土地利用の判別"]
[]
[]
[null,null,null,"土地利用の形態",null,null,null,null,null,null,"定　義",null,null,null,null,null,null,null,null,null,null,null,null,null,null,null,null,null,"留　意　事　項"]
["舗装された土地",null,null,"⑫　コンクリート等の不浸透性の材料により覆われた土地（法面を除く）",null,null,null,null,null,null,"コンクリート等の不浸透性の材料で覆われた土地（法面は含まず）をいう。"]
[]
[]
[]
[]
[null,null,null,"⑬　コンクリート等の不浸透性の材料により覆われた法面",null,null,null,null,null,null,"コンクリート等の不浸透性の材料で覆われた法面をいう。"]
[]
[]
[]
["その他土地からの流出雨水量を増加させる\nおそれのある行為に係る土地",null,null,"⑭　ゴルフ場（雨水を排除するための排水施設を伴うものに限る。）",null,null,null,null,null,null,"ゴルフ場の敷地すべてではなく、当該排水施設の集水範囲の対象となる区域の土地をいう。",null,null,null,null,null,null,null,null,null,null,null,null,null,null,null,null,null,"「雨水を排水するための排水施設」がない場合は、この区分の対象とならない。敷地のうち、排水施設に集水される範囲が対象となる。"]
[]
[]
[]
[]
[]
[null,null,null,"⑮　運動場、その他これに類する施設（雨水を排除するための排水施設を伴うものに限る。）",null,null,null,null,null,null,"運動場の敷地すべてではなく、排水施設の集水範囲の対象となる区域の土地をいう。",null,null,null,null,null,null,null,null,null,null,null,null,null,null,null,null,null,"「雨水を排水するための排水施設」がない場合は、この区分の対象とならない。敷地のうち、排水施設に集水される範囲が対象となる。"]
[]
[]
[]
[]
[]
[]
[]
[null,null,null,"⑯　ローラー、又はその他これに類する建設機械を用いて締め固められた土地",null,null,null,null,null,null,"建築物が建築できる程度、又は通常車両等が容易に走行できる程度に締め固められた土地（排水施設が設置されたゴルフ場、運動場等を除く）をいう。\n　施工段階で締め固められた土地であっても、耕起が行われることによって通常車両等が容易に走行できる程度までは締め固められていない状態のものは、締め固められた土地に該当しない。"]
[]
[]
[]
[]
[]
[]
[]
[]
[]
["上記に揚げる土地以外の土地",null,null,"⑰　山地",null,null,null,null,null,null,"平均勾配が１０％以上の土地（山地、林地、原野）をいう。",null,null,null,null,null,null,null,null,null,null,null,null,null,null,null,null,null,"平均勾配の設定は、以下の手順で行う。\na.地形図で開発区域の流域界を取得する。\nb.流域内最高地点(H1)及び最低地点(H2)を取得する。（最低地点は通常流末地点)\nc.流路延長（L）を取得する。（最高地点と最低地点の間）\nd.流域平均勾配（I）を下記式で算定する。\n　I＝(H1－H2)／L　\n他の区分（①～⑯、⑱、⑲）以外の土地で、平均勾配１０％以上の土地をいう。"]
[]
[]
[]
[]
[]
[]
[]
[]
[]
[null,null,null,"⑱　人工的に造成された植生に覆われた法面",null,null,null,null,null,null,"人工的に造成され、植生に覆われた法面をいう。"]
[]
[]
[]
[null,null,null,"⑲　林地、耕地、原野その他ローラーその他これに類する建設機械を用いて締め固められていない土地",null,null,null,null,null,null,"平均勾配が１０％未満で、一体的に林、又は草地等を形成している土地（山地、林地、原野）をいう。",null,null,null,null,null,null,null,null,null,null,null,null,null,null,null,null,null,"平均勾配の設定は、以下の手順で行う。\na.地形図で開発区域の流域界を取得する。\nb.流域内最高地点(H1)及び最低地点(H2)を取得する。（最低地点は通常流末地点)\nc.流路延長（L）を取得する。（最高地点と最低地点の間）\nd.流域平均勾配（I）を下記式で算定する。\n　I＝(H1－H2)／L　\n他の区分（①～⑯、⑱、⑲）以外の土地で、平均勾配１０％以上の土地をいう。"]
[]
[]
[]
[]
[]
[]
[]
[]
[]
[null,null,null,null,null,null,null,null,null,null,"耕作の目的に供される土地（水田〈灌漑中であるか否かを問わない〉を含む）をいう。　"]

{"sheet":"様式1","index":5,"n_rows":26,"n_cols":20,"rows_kept":26,"cut":false,"hidden":false,"merged":[[2,0,10,0],[2,1,3,11],[2,12,3,13],[2,14,3,16],[4,11,10,11],[4,12,10,12],[4,13,10,13],[4,14,10,14],[4,15,10,15],[4,16,10,16],[2,17,3,19],[4,1,10,1],[4,2,10,2],[4,3,10,3],[4,4,10,4],[4,5,10,5],[4,6,10,6],[4,7,10,7],[4,8,10,8],[4,9,10,9],[24,1,24,19],[4,17,10,17],[4,18,10,18],[4,19,10,19],[23,1,23,11],[23,12,23,13],[23,14,23,16],[23,17,23,19],[4,10,10,10]]}
[]
["現況土地利用区分面積集計表（行為前）",null,null,null,null,null,null,null,null,null,null,null,null,null,null,null,null,null,null,"様式－１"]
["エリアNo","宅地等",null,null,null,null,null,null,null,null,null,null,"舗装された土地",null,"その他土地からの流出雨水量を増加させるおそれのある行為に係る土地",null,null,"左記以外の土地"]
[]
[null,"宅地","池沼","水路","ため池","道路\n（法面を有しないものに限る。）","道路（法面を有するものに限る。）","鉄道線路\n（法面を有しないものに限る。）","鉄道線路\n（法面を有するものに限る。）","飛行場（法面を有しないものに限る。）","飛行場（法面を有するものに限る。）","太陽光パネル","コンクリート等の不浸透性の材料により覆われた土地（法面を除く）","コンクリート等の不浸透性の材料により覆われた法面","ゴルフ場\n（雨水を排除するための排水施設を伴うものに限る。）","運動場、その他これに類する施設\n（雨水を排除するための排水施設を伴うものに限る。）","ローラー、その他これに類する建設機械を用いて締め固められた土地","山地","人工的に造成された植生に覆われた法面","林地、耕地、原野その他ローラーその他これに類する建設機械を用いて締め固められていない土地"]
[]
[]
[]
[]
[]
[]
[1,1.9E-2]
[2,null,null,null,null,null,null,null,null,null,null,null,null,null,null,null,null,null,null,0.11]
[]
[]
[]
[]
[]
[]
[]
[]
[]
["小計１",{"$f":"SUM(B12:B22)","v":1.9E-2},0,0,0,0,0,0,0,0,0,0,0,0,0,0,0,0,0,0.11]
["小計２",{"$f":"SUM(B23:L23)","v":1.9E-2},null,null,null,null,null,null,null,null,null,null,{"$f":"SUM(M23:N23)","v":0},null,{"$f":"SUM(O23:Q23)","v":0},null,null,{"$f":"SUM(R23:T23)","v":0.11}]
["合　計",{"$f":"SUM(B24:T24)","v":0.129}]
[null,null,null,null,null,null,null,null,null,null,null,null,null,null,null,null,null,null,"（単位：ha）"]

{"sheet":"様式2","index":6,"n_rows":26,"n_cols":20,"rows_kept":26,"cut":false,"hidden":false,"merged":[[2,0,10,0],[2,1,3,11],[2,12,3,13],[2,14,3,16],[4,11,10,11],[4,12,10,12],[4,13,10,13],[4,14,10,14],[4,15,10,15],[4,16,10,16],[2,17,3,19],[4,1,10,1],[4,2,10,2],[4,3,10,3],[4,4,10,4],[4,5,10,5],[4,6,10,6],[4,7,10,7],[4,8,10,8],[4,9,10,9],[24,1,24,19],[4,17,10,17],[4,18,10,18],[4,19,10,19],[23,1,23,11],[23,12,23,13],[23,14,23,16],[23,17,23,19],[4,10,10,10]]}
[]
["計画土地利用区分面積集計表（行為後）",null,null,null,null,null,null,null,null,null,null,null,null,null,null,null,null,null,null,"様式－２"]
["エリアNo","宅地等",null,null,null,null,null,null,null,null,null,null,"舗装された土地",null,"その他土地からの流出雨水量を増加させるおそれのある行為に係る土地",null,null,"左記以外の土地"]
[]
[null,"宅地","池沼","水路","ため池","道路\n（法面を有しないものに限る。）","道路（法面を有するものに限る。）","鉄道線路\n（法面を有しないものに限る。）","鉄道線路\n（法面を有するものに限る。）","飛行場（法面を有しないものに限る。）","飛行場（法面を有するものに限る。）","太陽光パネル","コンクリート等の不浸透性の材料により覆われた土地（法面を除く）","コンクリート等の不浸透性の材料により覆われた法面","ゴルフ場\n（雨水を排除するための排水施設を伴うものに限る。）","運動場、その他これに類する施設\n（雨水を排除するための排水施設を伴うものに限る。）","ローラー、その他これに類する建設機械を用いて締め固められた土地","山地","人工的に造成された植生に覆われた法面","林地、耕地、原野その他ローラーその他これに類する建設機械を用いて締め固められていない土地"]
[]
[]
[]
[]
[]
[]
[1,0.112]
[2,null,null,null,null,1.7000000000000001E-2]
[]
[]
[]
[]
[]
[]
[]
[]
[]
["小計１",{"$f":"SUM(B12:B22)","v":0.112},0,0,0,1.7000000000000001E-2,0,0,0,0,{"$f":"SUM(K12:K22)","v":0},0,0,0,0,0,0,0,0,0]
["小計２",{"$f":"SUM(B23:L23)","v":0.129},null,null,null,null,null,null,null,null,null,null,{"$f":"SUM(M23:N23)","v":0},null,{"$f":"SUM(O23:Q23)","v":0},null,null,{"$f":"SUM(R23:T23)","v":0}]
["合　計",{"$f":"SUM(B24:T24)","v":0.129}]
[null,null,null,null,null,null,null,null,null,null,null,null,null,null,null,null,null,null,"（単位：ha）"]

{"sheet":"様式3","index":7,"n_rows":33,"n_cols":15,"rows_kept":33,"cut":false,"hidden":false,"merged":[[21,2,21,8],[22,2,22,8],[23,2,23,8],[21,0,24,1],[24,2,24,5],[1,14,5,14],[2,0,5,5],[2,13,5,13],[4,11,5,11],[6,14,17,14],[7,2,7,8],[8,2,8,8],[9,2,9,8],[10,2,10,8],[11,2,11,8],[17,2,17,5],[1,0,1,5],[12,2,12,8],[13,2,13,8],[14,2,14,8],[16,2,16,8],[20,2,20,5],[6,0,17,1],[6,2,6,8],[18,2,18,8],[19,2,19,8],[18,0,20,1],[15,2,15,8],[25,12,28,12],[26,2,26,8],[31,0,31,1],[31,2,31,5],[28,2,28,5],[29,0,29,1],[29,2,29,5],[27,2,27,8],[25,0,28,1],[25,2,25,8]]}
["行為前後の土地利用集計表",null,null,null,null,null,null,null,null,null,null,null,null,null,"様式－３"]
["土地利用区分",null,null,null,null,null,null,null,null,"①欄　様式-１","②欄　様式-２","③欄","④欄","参考","備　　考"]
["土　地　利　用　区　分",null,null,null,null,null,null,null,null,"現況土地利用","計画土地利用","面積差","雨水浸透阻害行為の当該面積","流出係数"]
[null,null,null,null,null,null,null,null,null,"面積（ha）①","面積（ha）②","（ha）"]
[null,null,null,null,null,null,null,null,null,"様式－１","様式－２","②－①","③欄が（＋）の場合、原則該当"]
[null,null,null,null,null,null,null,null,null,"小計１の欄","小計１の欄",null,"該当の場合面積（ha）を記入"]
["宅地等",null,"宅　　　地",null,null,null,null,null,null,{"$f":"様式1!$B$23","v":1.9E-2},{"$f":"様式2!$B$23","v":0.112},{"$f":"K7-J7","v":9.2999999999999999E-2},{"$f":"IF(L7<=0,\" \",L7)","v":9.2999999999999999E-2},0.9]
[null,null,"池　　　沼",null,null,null,null,null,null,{"$f":"様式1!$C$23","v":0},{"$f":"様式2!$C$23","v":0},0," ",1]
[null,null,"水　　　路",null,null,null,null,null,null,{"$f":"様式1!$D$23","v":0},{"$f":"様式2!$D$23","v":0},0," ",1]
[null,null,"た  め　池",null,null,null,null,null,null,{"$f":"様式1!$E$23","v":0},{"$f":"様式2!$E$23","v":0},0," ",1]
[null,null,"道路（法面を有しないものに限る。）",null,null,null,null,null,null,{"$f":"様式1!$F$23","v":0},{"$f":"様式2!$F$23","v":1.7000000000000001E-2},1.7000000000000001E-2,1.7000000000000001E-2,0.9]
[null,null,"道路（法面を有するものに限る。）",null,null,null,null,null,null,{"$f":"様式1!$G$23","v":0},{"$f":"様式2!$G$23","v":0},0," ","加重平均"]
[null,null,"鉄道線路（法面を有しないものに限る。）",null,null,null,null,null,null,{"$f":"様式1!$H$23","v":0},{"$f":"様式2!$H$23","v":0},0," ",0.9]
[null,null,"鉄道線路（法面を有するものに限る。）",null,null,null,null,null,null,{"$f":"様式1!$I$23","v":0},{"$f":"様式2!$I$23","v":0},0," ","加重平均"]
[null,null,"飛行場（法面を有しないものに限る。）",null,null,null,null,null,null,{"$f":"様式1!$J$23","v":0},{"$f":"様式2!$J$23","v":0},0,{"$f":"IF(L15<=0,\" \",L15)","v":" "},0.9]
[null,null,"飛行場（法面を有するものに限る。）",null,null,null,null,null,null,{"$f":"様式1!$K$23","v":0},{"$f":"様式2!$K$23","v":0},0,{"$f":"IF(L16<=0,\" \",L16)","v":" "},"加重平均"]
[null,null,"太陽光パネル",null,null,null,null,null,null,{"$f":"様式1!$L$23","v":0},{"$f":"様式2!$L$23","v":0},0,{"$f":"IF(L17<=0,\" \",L17)","v":" "},0.9]
[null,null,"小　　　計",null,null,null,null,null,null,{"$f":"SUM(J7:J17)","v":1.9E-2},{"$f":"SUM(K7:K17)","v":0.129},{"$f":"SUM(L7:L17)","v":0.11},{"$f":"SUM(M7:M17)","v":0.11}]
["舗装された土地",null,"コンクリート等の不浸透性の材料により覆われた土地（法面を除く）",null,null,null,null,null,null,{"$f":"様式1!$M$23","v":0},{"$f":"様式2!$M$23","v":0},{"$f":"K19-J19","v":0},{"$f":"IF(L19<=0,\" \",L19)","v":" "},0.95]
[null,null,"コンクリート等の不浸透性の材料により覆われた法面",null,null,null,null,null,null,{"$f":"様式1!$N$23","v":0},{"$f":"様式2!$N$23","v":0},{"$f":"K20-J20","v":0},{"$f":"IF(L20<=0,\" \",L20)","v":" "},1]
[null,null,"小　　　計",null,null,null,null,null,null,{"$f":"SUM(J19:J20)","v":0},{"$f":"SUM(K19:K20)","v":0},{"$f":"SUM(L19:L20)","v":0},{"$f":"SUM(M19:M20)","v":0}]
["その他土地からの流出雨水量を増加させるおそれのある行為に係る土地",null,"ゴルフ場（雨水を排除するための排水施設を伴うものに限る。）",null,null,null,null,null,null,{"$f":"様式1!$O$23","v":0},{"$f":"様式2!$O$23","v":0},{"$f":"K22-J22","v":0},{"$f":"IF(L22<=0,\" \",L22)","v":" "},0.5]
[null,null,"運動場、その他これに類する施設（雨水を排除するための排水施設を伴うものに限る。）",null,null,null,null,null,null,{"$f":"様式1!$P$23","v":0},{"$f":"様式2!$P$23","v":0},{"$f":"K23-J23","v":0},{"$f":"IF(L23<=0,\" \",L23)","v":" "},0.8]
[null,null,"ローラーその他これに類する建設機械を用いて締め固められた土地",null,null,null,null,null,null,{"$f":"様式1!$Q$23","v":0},{"$f":"様式2!$Q$23","v":0},{"$f":"K24-J24","v":0},{"$f":"IF(L24<=0,\" \",L24)","v":" "},0.5]
[null,null,"小　　　計",null,null,null,null,null,null,{"$f":"SUM(J22:J24)","v":0},{"$f":"SUM(K22:K24)","v":0},{"$f":"SUM(L22:L24)","v":0},{"$f":"SUM(M22:M24)","v":0}]
["上記に揚げる土地以外の土地",null,"山　　　地",null,null,null,null,null,null,{"$f":"様式1!$R$23","v":0},{"$f":"様式2!$R$23","v":0},{"$f":"K26-J26","v":0},null,0.3]
[null,null,"人工的に造成された植生に覆われた法面",null,null,null,null,null,null,{"$f":"様式1!$S$23","v":0},{"$f":"様式2!$S$23","v":0},{"$f":"K27-J27","v":0},null,0.4]
[null,null,"林地、耕地、原野その他ローラーその他これに類する建設機械を用いて締め固められていない土地",null,null,null,null,null,null,{"$f":"様式1!$T$23","v":0.11},{"$f":"様式2!$T$23","v":0},{"$f":"K28-J28","v":-0.11},null,0.2]
[null,null,"小　　　計",null,null,null,null,null,null,{"$f":"SUM(J26:J28)","v":0.11},{"$f":"SUM(K26:K28)","v":0},{"$f":"SUM(L26:L28)","v":-0.11}]
["合　　　計",null,null,null,null,null,null,null,null,{"$f":"J18+J21+J25+J29","v":0.129},{"$f":"K18+K21+K25+K29","v":0.129},{"$f":"L18+L21+L25+L29","v":0},{"$f":"M18+M21+M25","v":0.11}]
[null,null,null,null,null,null,null,null,null,null,null,null,"(－)の欄は記載不要","（単位：ha）"]
["④欄の合計",null,{"$f":"M30","v":0.11},null,null,null," ha"]
[null,null,"  0.1ha（1,000㎡）以上の場合、申請の対象"]

{"sheet":"様式4","index":8,"n_rows":33,"n_cols":7,"rows_kept":33,"cut":false,"hidden":false,"merged":[[27,0,29,2],[30,0,30,3],[31,0,31,3],[19,0,26,0],[19,1,20,2],[21,1,23,2],[0,6,1,6],[7,0,7,2],[8,0,18,0],[8,1,18,2],[24,1,26,2]]}
[null,null,null,null,null,null,"様式－４"]
["雨水浸透阻害行為前後の平均流出係数　"]
[]
["行為区域位置",null,null,"○○市○○町"]
["行為面積",null,null,{"$f":"様式3!M30","v":0.11}]
[]
["行為前後の土地利用区分"]
["区分",null,null,"土地利用の形態の細区分","流出係数","行為前面積\n（ha）","行為後面積\n（ha）"]
["宅地等に該当する土地","第１号\n関連",null,"宅地",0.9,{"$f":"様式3!J7","v":1.9E-2},{"$f":"様式3!K7","v":0.112}]
[null,null,null,"池沼",1,{"$f":"様式3!J8","v":0},{"$f":"様式3!K8","v":0}]
[null,null,null,"水路",1,{"$f":"様式3!J9","v":0},{"$f":"様式3!K9","v":0}]
[null,null,null,"ため池",1,{"$f":"様式3!J10","v":0},{"$f":"様式3!K10","v":0}]
[null,null,null,"道路（法面を有しないものに限る。） ",0.9,{"$f":"様式3!J11","v":0},{"$f":"様式3!K11","v":1.7000000000000001E-2}]
[null,null,null,"道路（法面を有するものに限る。） ",null,{"$f":"様式3!J12","v":0},{"$f":"様式3!K12","v":0}]
[null,null,null,"鉄道線路（法面を有しないものに限る。） ",0.9,{"$f":"様式3!J13","v":0},{"$f":"様式3!K13","v":0}]
[null,null,null,"鉄道線路（法面を有するものに限る。） ",null,{"$f":"様式3!J14","v":0},{"$f":"様式3!K14","v":0}]
[null,null,null,"飛行場（法面を有しないものに限る。） ",0.9,{"$f":"様式3!J15","v":0},{"$f":"様式3!K15","v":0}]
[null,null,null,"飛行場（法面を有するものに限る。） ",null,{"$f":"様式3!J16","v":0},{"$f":"様式3!K16","v":0}]
[null,null,null,"太陽光パネル",0.9,{"$f":"様式3!J17","v":0},{"$f":"様式3!K17","v":0}]
["宅地等以外の土地","第２号\n関連",null,"コンクリート等の不浸透性の材料により覆われた土地（法面を除く）",0.95,{"$f":"様式3!J19","v":0},{"$f":"様式3!K19","v":0}]
[null,null,null,"コンクリート等の不浸透性の材料により覆われた法面",1,{"$f":"様式3!J20","v":0},{"$f":"様式3!K20","v":0}]
[null,"第３号\n関連",null,"ゴルフ場（雨水を排除するための排水施設を伴うものに限る。）",0.5,{"$f":"様式3!J22","v":0},{"$f":"様式3!K22","v":0}]
[null,null,null,"運動場その他これに類する施設（雨水を排除するための排水施設を伴うものに限る。）",0.8,{"$f":"様式3!J23","v":0},{"$f":"様式3!K23","v":0}]
[null,null,null,"ローラーその他これに類する建設機械を用いて締め固められた土地",0.5,{"$f":"様式3!J24","v":0},{"$f":"様式3!K24","v":0}]
[null,"上記第１号から\n第３号に掲げる\n土地以外の土地",null,"山地",0.3,{"$f":"様式3!J26","v":0},{"$f":"様式3!K26","v":0}]
[null,null,null,"人工的に造成され植生に覆われた法面",0.4,{"$f":"様式3!J27","v":0},{"$f":"様式3!K27","v":0}]
[null,null,null,"林地、耕地、原野その他ローラーその他これに類する建設機械を用いて締め固められていない土地",0.2,{"$f":"様式3!J28","v":0.11},{"$f":"様式3!K28","v":0}]
["その他"]
[]
[]
["面積計",null,null,null,null,{"$f":"SUM(F9:F30)","v":0.129},{"$f":"SUM(G9:G30)","v":0.129}]
["平均流出係数",null,null,null,null,{"$f":"ROUND(($E9*F9+$E10*F10+$E11*F11+$E12*F12+$E13*F13+$E14*F14+$E15*F15+$E16*F16+$E17*F17+$E18*F18+$E19*F19+$E20*F20+$E21*F21+$E22*F22+$E23*F23+$E24*F24+$E25*F25+$E26*F26+$E27*F27)/F31,3)","v":0.30299999999999999},{"$f":"ROUND(($E9*G9+$E10*G10+$E11*G11+$E12*G12+$E13*G13+E14*G14+$E15*G15+E16*G16+$E17*G17+E18*G18+$E19*G19+$E20*G20+$E21*G21+$E22*G22+$E23*G23+$E24*G24+$E25*G25+$E26*G26+$E27*G27)/G31,3)","v":0.9}]
[null,"※　様式－１,２、図面－３,４,５,６参照"]

{"sheet":"直接放流区域諸元算出表","index":9,"n_rows":35,"n_cols":13,"rows_kept":35,"cut":false,"hidden":false,"merged":[[5,11,6,11],[4,4,4,6],[4,11,4,12],[1,2,1,12],[2,2,2,12],[4,2,6,2],[5,12,6,12],[5,6,6,6],[38,9,38,10],[40,9,40,10],[4,7,4,9],[4,3,6,3],[5,4,6,4],[5,5,6,5],[5,7,6,7],[5,8,6,8],[5,9,6,9],[30,8,30,9],[26,2,26,3],[27,2,27,3],[30,6,31,6],[30,7,31,7]]}
[]
[null,null,"直接放流区域諸元算出表"]
[null,null,"雨水貯留浸透施設に流入しない区域（直接放流区域）がある場合の、調整池容量計算システムの利用に係るデータの算出を行います。\n赤枠の直接放流区域の面積を入力すると、同システムの行為前後の流出係数の算定に使用するデータ（調整池容量計算システム計算用データ（直接放流区域外の面積））が算出されます。"]
[]
[null,null,"土地利用の形態の細区分","流出係数","行為前面積\n（ha）",null,null,"行為後面積\n（ha）",null,null,null,"調整池容量計算システム\n計算用データ\n（直接放流区域以外の面積）\n（ha）"]
[null,null,null,null,"全体","直接放流区域","直接放流区域以外\n全体-直接放流区域","全体","直接放流区域","直接放流区域以外\n全体-直接放流区域",null,"行為前","行為後"]
[]
[null,1,"宅地",0.9,{"$f":"様式1!B23","v":1.9E-2},0,{"$f":"E8-F8","v":1.9E-2},{"$f":"様式2!B23","v":0.112},0,{"$f":"H8-I8","v":0.112},null,{"$f":"G8","v":1.9E-2},{"$f":"J8","v":0.112}]
[null,2,"池沼",1,{"$f":"様式1!C23","v":0},0,0,{"$f":"様式2!C23","v":0},0,0,null,{"$f":"G9","v":0},{"$f":"J9","v":0}]
[null,3,"水路",1,{"$f":"様式1!D23","v":0},0,0,{"$f":"様式2!D23","v":0},0,0,null,0,0]
[null,4,"ため池",1,{"$f":"様式1!E23","v":0},0,0,{"$f":"様式2!E23","v":0},0,0,null,0,0]
[null,5,"道路(法面を有しないもの）",0.9,{"$f":"様式1!F23","v":0},0,0,{"$f":"様式2!F23","v":1.7000000000000001E-2},0,1.7000000000000001E-2,null,0,1.7000000000000001E-2]
[null,6,"道路（法面を有するもの）",null,{"$f":"様式1!G23","v":0},0,0,{"$f":"様式2!G23","v":0},0,0,null,0,0]
[null,7,"鉄道線路（法面を有しないもの）",0.9,{"$f":"様式1!H23","v":0},0,0,{"$f":"様式2!H23","v":0},0,0,null,0,0]
[null,8,"鉄道線路（法面を有するもの）",null,{"$f":"様式1!I23","v":0},0,0,{"$f":"様式2!I23","v":0},0,0,null,0,0]
[null,9,"飛行場（法面を有しないもの）",0.9,{"$f":"様式1!J23","v":0},0,0,{"$f":"様式2!J23","v":0},0,0,null,0,0]
[null,10,"飛行場（法面を有するもの）",null,{"$f":"様式1!K23","v":0},0,0,{"$f":"様式2!K23","v":0},0,0,null,0,0]
[null,11,"太陽光パネル",0.9,{"$f":"様式1!L23","v":0},0,0,{"$f":"様式2!L23","v":0},0,0,null,0,0]
[null,12,"不浸透性材料により舗装された土地（法面を除く）",0.95,{"$f":"様式1!M23","v":0},0,0,{"$f":"様式2!M23","v":0},0,0,null,0,0]
[null,13,"不浸透性材料により覆われた法面",1,{"$f":"様式1!N23","v":0},0,0,{"$f":"様式2!N23","v":0},0,0,null,0,0]
[null,14,"ゴルフ場（雨水を排除するための排水施設を伴うものに限る）",0.5,{"$f":"様式1!O23","v":0},0,0,{"$f":"様式2!O23","v":0},0,0,null,0,0]
[null,15,"運動場その他これに類する施設（雨水を排除するための排水施設を伴うものに限る）",0.8,{"$f":"様式1!P23","v":0},0,0,{"$f":"様式2!P23","v":0},0,0,null,0,0]
[null,16,"ローラーその他これに類する建設機械を用いて締め固められた土地",0.5,{"$f":"様式1!Q23","v":0},0,0,{"$f":"様式2!Q23","v":0},0,0,null,0,0]
[null,17,"山地",0.3,{"$f":"様式1!R23","v":0},0,0,{"$f":"様式2!R23","v":0},0,0,null,0,0]
[null,18,"人工的に造成され植生に覆われた法面",0.4,{"$f":"様式1!S23","v":0},0,0,{"$f":"様式2!S23","v":0},0,0,null,0,0]
[null,19,"林地、耕地、原野その他ローラーその他これに類する建設機械を用いて締め固められていない土地",0.2,{"$f":"様式1!T23","v":0.11},0,0.11,{"$f":"様式2!T23","v":0},0,0,null,0.11,0]
[null,null,"合計面積",null,{"$f":"SUM(E8:E26)","v":0.129},0,0.129,0.129,0,0.129]
[null,null,"流出係数",null,{"$f":"IFERROR(($D$8*E8+$D$9*E9+$D$10*E10+$D$11*E11+$D$12*E12+$D$13*E13+$D$14*E14+$D$15*E15+$D$16*E16+$D$17*E17+$D$18*E18+$D$19*E19+$D$20*E20+$D$21*E21+$D$22*E22+$D$23*E23+$D$24*E24+$D$25*E25+$D$26*E26)/E27,0)","v":0.30310077519379847},0,0.30310077519379847,0.9,0,0.9]
[]
[null,null,null,null,null,null,"●まとめ"]
[null,null,null,null,null,null,null,"行為面積\n（ha）","平均流出係数"]
[null,null,null,null,null,null,null,null,"行為前","行為後"]
[null,null,null,null,null,null,"全体",{"$f":"H27","v":0.129},{"$f":"E28","v":0.30310077519379847},{"$f":"H28","v":0.9}]
[null,null,null,null,null,null,"直接放流区域",{"$f":"I27","v":0},{"$f":"F28","v":0},{"$f":"I28","v":0}]
[null,null,null,null,null,null,"直接放流区域以外",{"$f":"J27","v":0.129},{"$f":"G28","v":0.30310077519379847},{"$f":"J28","v":0.9}]

{"sheet":"様式5（直接放流区域なし）","index":10,"n_rows":29,"n_cols":13,"rows_kept":29,"cut":false,"hidden":false,"merged":[[23,2,23,3],[25,2,25,3],[28,2,28,3]]}
[null,null,null,null,null,null,null,null,null,null,null,null,"様式－５"]
[]
[null,{"$f":"IF(直接放流区域諸元算出表!$H$34=0,\"\",\"直接放流区域がある場合は、様式5(直接放流区域あり)を使用してください。\")","v":""}]
[]
[null,"雨水浸透阻害行為前後の最大雨水流出量"]
[]
[null,"合理式",null,"Ｑ＝１/360・ｆ・ｒ・Ａ"]
[]
[null,null,"Ｑ：流量（㎥／ｓ）"]
[null,null,"ｆ：流出係数　（様式－４より）"]
[null,null,"ｒ：最大降雨強度(10分間）（基準降雨_○○流域より入力）",null,null,null,null,null,null,null,null,127.1,"（ｍｍ／ｈ）"]
[null,null,"Ａ：集水面積（ｈａ）（様式－４より）"]
[]
[null,"① 行為前の最大雨水流出量"]
[]
[null,null,"Ｑ＝１／３６０×",null,{"$f":"様式4!$F$32","v":0.30299999999999999},"×",{"$f":"L11","v":127.1},"×",{"$f":"様式4!$F$31","v":0.129},"＝",{"$f":"ROUND(E16*L11*I16/360,5)","v":1.38E-2},"㎥／ｓ"]
[]
[null,"② 行為後の最大雨水流出量"]
[]
[null,null,"Ｑ＝１／３６０×",null,{"$f":"様式4!$G$32","v":0.9},"×",{"$f":"L11","v":127.1},"×",{"$f":"様式4!$G$31","v":0.129},"＝",{"$f":"ROUND(E20*L11*I20/360,5)","v":4.0989999999999999E-2},"㎥／ｓ"]
[]
[null,"③","雨水貯留浸透施設の必要対策量（＝② — ①）"]
[]
[null,null,{"$f":"K20","v":4.0989999999999999E-2},null,"㎥／ｓ－　",null,{"$f":"K16","v":1.38E-2},null,"㎥／ｓ","＝",{"$f":"C24-G24","v":2.7189999999999999E-2},"㎥／ｓ"]
[]
[null,null,{"$f":"K24","v":2.7189999999999999E-2},null,"㎥／ｓ分をカットする対策が必要。"]
[]
[null,"④ 雨水貯留浸透施設からの許容放流量（＝①）"]
[null,null,{"$f":"K16","v":1.38E-2},null,"㎥／ｓ　"]

{"sheet":"様式5（直接放流区域あり）","index":11,"n_rows":35,"n_cols":13,"rows_kept":35,"cut":false,"hidden":false,"merged":[[34,2,34,3],[29,2,29,8],[31,2,31,3]]}
[null,null,null,null,null,null,null,null,null,null,null,null,"様式－５"]
[]
[null,{"$f":"IF(直接放流区域諸元算出表!$H$34=0,\"直接放流区域がない場合は、様式5(直接放流区域なし)を使用してください。\",\"\")","v":"直接放流区域がない場合は、様式5(直接放流区域なし)を使用してください。"}]
[]
[null,"雨水浸透阻害行為前後の最大雨水流出量"]
[null,null,"雨水浸透阻害行為の範囲内に雨水貯留浸透施設に流入しない区域（直接放流区域）がある場合"]
[]
[]
[null,"合理式",null,"Ｑ＝１/360・ｆ・ｒ・Ａ"]
[]
[null,null,"Ｑ：流量（㎥／ｓ）"]
[null,null,"ｆ：流出係数　（様式－４および直接放流区域諸元算定表より）"]
[null,null,"ｒ：最大降雨強度(10分間）（基準降雨_○○流域より入力）",null,null,null,null,null,null,null,null,127.1,"（ｍｍ／ｈ）"]
[null,null,"Ａ：集水面積（ｈａ）（様式－４および直接放流区域諸元算定表より）"]
[]
[null,"① 行為前の最大雨水流出量"]
[]
[null,null,"Ｑ＝１／３６０×",null,{"$f":"様式4!$F$32","v":0.30299999999999999},"×",{"$f":"L13","v":127.1},"×",{"$f":"様式4!$F$31","v":0.129},"＝",{"$f":"ROUND(E18*L13*I18/360,5)","v":1.38E-2},"㎥／ｓ"]
[]
[null,"② 行為後の直接放流区域からの最大雨水流出量"]
[]
[null,null,"Ｑ＝１／３６０×",null,{"$f":"直接放流区域諸元算出表!$J$34","v":0},"×",{"$f":"L13","v":127.1},"×",{"$f":"直接放流区域諸元算出表!$H$34","v":0},"＝",{"$f":"ROUND(E22*L13*I22/360,5)","v":0},"㎥／ｓ"]
[]
[null,"③ 行為後の直接放流区域以外からの最大雨水流出量"]
[]
[null,null,"Ｑ＝１／３６０×",null,{"$f":"直接放流区域諸元算出表!$J$35","v":0.9},"×",{"$f":"L13","v":127.1},"×",{"$f":"直接放流区域諸元算出表!$H$35","v":0.129},"＝",{"$f":"ROUND(E26*L13*I26/360,5)","v":4.0989999999999999E-2},"㎥／ｓ"]
[]
[null,"④","雨水貯留浸透施設の必要対策量（＝③ － ① ＋ ②）"]
[]
[null,null,{"$f":"K26&\"㎥／ｓ－　\"&K18&\"㎥／ｓ＋　\"&K22&\"㎥／ｓ\"","v":"0.04099㎥／ｓ－　0.0138㎥／ｓ＋　0㎥／ｓ"},null,null,null,null,null,null,"＝",{"$f":"K26-K18+K22","v":2.7189999999999999E-2},"㎥／ｓ"]
[]
[null,null,{"$f":"K30","v":2.7189999999999999E-2},null,"㎥／ｓ分をカットする対策が必要。"]
[]
[null,"⑤","雨水貯留浸透施設からの許容放流量（＝① － ②）"]
[null,null,{"$f":"K18","v":1.38E-2},null,"㎥／ｓ－　",null,{"$f":"K22","v":0},null,"㎥／ｓ","＝",{"$f":"K18-K22","v":1.38E-2},"㎥／ｓ"]

{"sheet":"様式6作成要領","index":12,"n_rows":42,"n_cols":4,"rows_kept":42,"cut":false,"hidden":false,"merged":[[3,1,4,35],[14,3,15,36],[36,1,37,36],[8,1,9,34],[18,1,21,36],[23,1,23,36],[24,1,25,36]]}
[]
[null,"（様式－６作成要領）"]
[]
[null,"　様式－６では、雨水貯留浸透施設の対策規模を設定し、行為後のピーク流量が行為前の流出雨水量の最大値を超えないか確認することを目的としています。"]
[]
[]
[null,"「調整池容量システム（エクセル）」を用いて様式－６を作成します。"]
[null,"「ユーザーマニュアル」を参考にしながら、以下のシートを作成してください。"]
[null,"（「調整池容量システム（エクセル）」、「ユーザーマニュアル」は、\n国土交通省のポータルサイト『調整池容量計算システムについて』から利用可能です。）"]
[]
[]
[null,"～「調整池容量システム（エクセル）」使用方法～"]
[]
["1．","・流出係数算出➡直接放流区域がない場合、様式－４を参照して記入してください。"]
[null,null,null," 直接放流区域がある場合、直接放流区域諸元算定表の「調整池容量計算システム計算用データ（直接放流区域外の面積）」を参照して記入してください。"]
[]
["2．","・降雨強度➡別紙【基準降雨量_○○流域】の値を貼り付けてください。"]
[]
["3．","・01流出計算（Q-Tグラフ）➡「流出計算の実行」を選択し、「行為面積」を入力、「流出係数」ボタンを押下のうえ、\n　　　　　　　　　　　　　　　　　　　「計算実行」ボタンを押下してください。\n（直接放流区域がない場合、様式－５に対応した値になります。行為前後の流出量を確認してください。）\n（直接放流区域がある場合の「行為面積」は直接放流区域以外の面積を入力してください。）"]
[]
[]
[]
[]
["4．","・浸透施設能力➡設置する浸透施設の比浸透量、飽和透水係数、設置数量、影響係数、体積、空隙率を入力してください。"]
[null,"（各浸透施設諸元の算出には次シートの「浸透施設諸元算出表」を使用し、算出された諸元（青・緑ハッチング項目）を調整池容量計算システムの「浸透施設能力」シートに入力してください。）"]
[]
[]
["5．","・02流出計算（QT-Sグラフ）➡流出計算条件を選択し、「計算実行/再設定」ボタンを押してください。"]
[]
["6．","・04－①調整計算（自然調節方式）または04－③調整計算（ポンプ）"]
[null,"➡調整池を設置する場合は諸元を入力し、「計算実行」ボタンを押してください。"]
[]
["7．","・計算結果の総合評価がO.Kとなっているか確認します。（N.Gの場合はO.Kになるまで、繰り返し諸元を調整します。）"]
[null,"・なお、直接放流区域がある場合は、最大放流量が様式－５で算出した許容放流量以下になるようにしてください。"]
[null,"　（総合評価がO.Kとなっていても、様式－５で算出した許容放流量以下になるように諸元を調整してください。）"]
[]
["8．","・上記7.まで完了したら、「【様式】許可申請図書」の保存場所を入力し、「許可申請図書の作成」ボタンを押下して計算結果を出力します。"]
[]
[null,"（「【様式】許可申請図書」は『調整池容量計算システムについて』→『許可申請図書様式集』から保存可能です。）"]
[]
["9．","・出力された許可申請図書(エクセル)から、流出抑制施設の諸元および調節計算結果を様式－６に入力します。"]
[null,"（※様式－６は正方形ます、浸透トレンチおよび調整池を併用した場合を赤字で例示しています。）"]

{"sheet":"浸透施設諸元算出表","index":13,"n_rows":53,"n_cols":12,"rows_kept":53,"cut":false,"hidden":false,"merged":[[37,8,38,8],[38,1,38,2],[45,6,46,6],[45,7,46,7],[30,1,30,2],[31,1,31,2],[32,1,32,2],[33,1,33,2],[34,1,34,2],[35,0,38,0],[35,1,35,2],[36,1,36,2],[37,1,37,2],[20,1,20,2],[21,1,21,2],[22,1,24,1],[25,0,29,0],[25,1,25,2],[26,1,26,2],[27,1,27,2],[28,1,28,2],[29,1,29,2],[19,1,19,2],[3,1,4,4],[15,1,15,2],[16,1,16,2],[17,1,17,2],[18,1,18,2]]}
[]
[null,"浸透施設諸元算出表"]
[]
[null,"使用する浸透施設の諸元をオレンジ色ハッチング箇所に入力してください。\n必要な諸元（青・緑ハッチング項目）が自動算出されます。"]
[]
[null,"例として、下図の正方形ますおよび浸透トレンチを使用した場合の数値を赤字で示しています。"]
[]
[]
[]
[]
[]
[]
[]
[]
[]
[null,"施設",null,"円筒ます","正方形ます","矩形ます","浸透トレンチ・浸透側溝","透水性舗装・透水性平板",null,"",null,""]
[null,"浸透面",null,"側面および底面","側面および底面","側面および底面","側面および底面","底面",null,"",null,""]
[null,"模式図"]
[null,"施設規模の適応範囲",null,"H≦5.0m, 0.2≦D≦10m","H≦5.0m, W≦80m","H≦5.0m, L≦200m, W≦5m","H≦1.5m, W≦1.5m","H≦1.5m"]
[null,"設計水頭H(m)",null,null,0.5,null,0.5,null,null,"",null,""]
[null,"施設直径D(m)、施設幅W(m)",null,null,0.5,null,0.5]
[null,"施設延長L(m)"]
[null,"係数","a",{"$f":"IF(D21<0.2,\"\",IF(D21<=1,0.475*D21+0.945,IF(D21<=10,6.244*D21+2.853,\"\")))","v":""},{"$f":"IF(E21<=0,\"\",IF(E21<=1,0.12*E21+0.985,IF(E21<=10,-0.453*E21^2+8.289*E21+0.753,IF(E21<=80,0.747*E21+21.355,\"\"))))","v":1.0449999999999999},{"$f":"IF(F21<=0,\"\",IF(F21<=5,3.297*F22+(1.971*F21+4.663),\"\"))","v":""},3.093,1.4E-2]
[null,null,"b",{"$f":"IF(D21<0.2,\"\",IF(D21<=1,6.07*D21+1.01,IF(D21<=10,0.93*D21^2+1.606*D21-0.773,\"\")))","v":""},{"$f":"IF(E21<=0,\"\",IF(E21<=1,7.837*E21+0.82,IF(E21<=10,1.458*E21^2+1.27*E21+0.362,IF(E21<=80,1.263*E21^2+4.295*E21-7.649,\"\"))))","v":4.7385000000000002},{"$f":"IF(F21<=0,\"\",IF(F21<=5,(1.401*F21+0.684)*F22+(1.214*F21-0.834),\"\"))","v":""},{"$f":"IF(G21<=0,\"\",IF(G21<=1.5,1.34*G21+0.677,\"\"))","v":1.347},1.2869999999999999]
[null,null,"c",{"$f":"IF(D21<0.2,\"\",IF(D21<=1,2.57*D21-0.188,\"\"))","v":""},{"$f":"IF(E21<=0,\"\",IF(E21<=1,2.858*E21-0.283,\"\"))","v":1.1460000000000001}]
["浸透能力算出のために必要な諸元","比浸透量(m2)",null,{"$f":"IF(D21<0.2,\"\",IF(D21<=1,D23*D20^2+D24*D20+D25,IF(D21<=10,D23*D20+D24,\"\")))","v":""},{"$f":"IF(E21<=0,\"\",IF(E21<=1,E23*E20^2+E24*E20+E25,IF(E21<=80,E23*E20+E24,\"\")))","v":3.7765000000000004},{"$f":"IF(F21<=0,\"\",IF(F21<=5,F23*F20+F24,\"\"))","v":""},{"$f":"IF(G21<=0,\"\",IF(G21<=1.5,G23*G20+G24,\"\"))","v":2.8935},{"$f":"IF(H20<=0,\"\",IF(H20<=1.5,H23*H20+H24,\"\"))","v":""}]
[null,"飽和透水係数(cm/s）",null,null,1.7260000000000001E-3,null,1.7260000000000001E-3]
[null,"設置数量(個)、(m)、(m2)",null,null,2,null,1.5]
[null,"影響係数（１）",null,0.9,0.9,0.9,0.9,0.9]
[null,"影響係数（２）",null,0.9,0.9,0.9,0.9,0.9]
[null,"影響係数（３）",null,1,1,1,1,1]
[null,"管の外径(m)",null,null,0.318,null,0.11600000000000001]
[null,"管の内径(m)",null,null,0.3,null,0.1]
[null,"管の高さ(m)",null,null,0.45]
[null,"トレンチの段数",null,null,null,null,2]
["空隙貯留量算出のために必要な諸元","砕石部の体積(m3)",null,{"$f":"((D21/2)^2*PI()*D20-(D32/2)^2*PI()*D34)","v":0},{"$f":"(E21^2*E20-(E32/2)^2*PI()*E34)","v":8.9259828256068402E-2},{"$f":"(F21*F22*F20-(F32/2)^2*PI()*F34)","v":0},{"$f":"(G20*G21-((G32/2)^2*PI())*G35)","v":0.22886336462664786},{"$f":"H20","v":0}]
[null,"砕石部の空隙率(%)",null,null,35,null,35,null,"下表の材料別の空隙率を参照し、該当する材料の設計値を入力してください"]
[null,"ます部（浸透管部）の\n体積(m3)",null,{"$f":"(D33/2)^2*PI()*D34","v":0},{"$f":"(E33/2)^2*PI()*E34","v":3.1808625617596654E-2},{"$f":"(F33/2)^2*PI()*F34","v":0},{"$f":"(G33/2)^2*PI()*G35","v":1.5707963267948967E-2},null,"空隙貯留量の条件設定に入力してください"]
[null,"ます部（浸透管部）の\n空隙率(%)",null,100,100,100,100]
[]
[null,null,null,null,null,"●材料別の空隙率"]
[null,null,null,null,null,"材料","設計値","文献による参考値"]
[null,null,null,null,null,"単粒度砕石（３・４・５号）",0.35,"30～40％※１"]
[null,null,null,null,null,"クラッシャーラン",0.12,"骨材間隙率6～18％※２"]
[null,null,null,null,null,"粒度調整砕石",0.09,"骨材間隙率3～15％※２"]
[null,null,null,null,null,"透水性アスファルト混合物",0.15,"10～20％以上※３"]
[null,null,null,null,null,"透水性瀝青安定処理路盤"]
[null,null,null,null,null,"透水性コンクリート",0.2,"連続空隙率20%※４"]
[null,null,null,null,null,"プラスチック製貯留材","使用する製品の\nカタログ値を採用","60～95％※４\n空隙率は製品により異なり、また98％の空隙率を有するものもある"]
[null,null,null,null,null,"※１：雨水浸透施設技術指針［案］構造・施工・維持管理編 社団法人雨水貯留浸透技術協会"]
[null,null,null,null,null,"※２：舗装設計施工指針 社団法人日本道路協会"]
[null,null,null,null,null,"※３：雨水流出抑制施設(規定及び解説)住宅・都市整備公団"]
[null,null,null,null,null,"※４：技術評価認定書 社団法人雨水貯留浸透技術協会"]

{"sheet":"様式6","index":14,"n_rows":70,"n_cols":18,"rows_kept":70,"cut":false,"hidden":false,"merged":[[35,16,37,16],[36,7,37,7],[36,8,37,8],[49,15,51,15],[49,16,51,16],[35,15,37,15],[49,6,51,6],[49,7,49,8],[49,9,51,9],[49,10,49,12],[49,14,51,14],[50,7,51,7],[50,8,51,8],[35,6,37,6],[35,7,35,8],[35,9,37,9],[35,10,35,12],[35,14,37,14],[21,16,21,17],[22,7,23,7],[22,8,23,8],[22,15,23,15],[22,16,23,16],[22,17,23,17],[21,14,23,14],[11,1,11,2],[21,6,23,6],[21,7,21,8],[21,9,23,9],[21,10,21,12],[7,14,9,14],[7,16,7,17],[8,7,9,7],[8,8,9,8],[8,15,9,15],[8,16,9,16],[8,17,9,17],[7,10,7,12],[6,1,6,2],[7,1,10,1],[7,6,9,6],[7,7,7,8],[7,9,9,9]]}
[null,"政令第９条第１項に規定する技術的基準に適合することを証する書類",null,null,null,null,null,null,null,null,null,null,null,null,null,null,null,"様式－６"]
[]
[null,"流出抑制施設諸元"]
[]
[null,"調整池諸元",null,null,null,null,"浸透施設諸元",null,null,null,null,null,null,null,"空隙貯留量諸元"]
[null,"放流口径（2段オリフィスの場合は、上・下段の雨諸元を記載）",null,null,null,null,"浸透能力",1.6627477095000002E-4,"m3/s",null,null,null,null,null,"空隙貯留量",null,0.26981434234535479,"m3"]
[null,null,null,"下段","上段（２段オリフィスの場合）"]
[null,"放流口形状","形状","円形",null,null,"【浸透マス】","単位設計浸透能（ｍ3/ｈｒ/個）",null,"設置数量\n（個）","影響係数",null,null,null,"【浸透マス】\n1個あたり","ます部","砕石部"]
[null,null,"直径",0.08,null,null,null,"比浸透量（㎡）","飽和透水係数\n（m/hr）",null,"（1）","（2）","（3）",null,null,"体積\n（ｍ3）","体積\n（ｍ3）","空隙率\n（％）"]
[null,null,"高さ","-",null,null,null,null,null,null,"内容（１）","内容（２）","内容（３）"]
[null,null,"幅","-",null,null,1,3.7765000000000004,6.2136000000000004E-2,2,0.9,0.9,1,null,1,3.1808625617596654E-2,8.9259828256068402E-2,35]
[null,"管底位置（池底から）",null,0,null,null,2,null,null,null,null,null,null,null,2]
[null,null,null,null,null,null,3,null,null,null,null,null,null,null,3]
[null,"調整池諸元",null,"ポンプ諸元(ポンプ排水を用いた場合)",null,null,4,null,null,null,null,null,null,null,4]
[null,"Ｈ","Ｖ","Ｈ","Q",null,5,null,null,null,null,null,null,null,5]
[null,0,0,null,null,null,6,null,null,null,null,null,null,null,6]
[null,1,60,null,null,null,7,null,null,null,null,null,null,null,7]
[null,null,null,null,null,null,8,null,null,null,null,null,null,null,8]
[null,null,null,null,null,null,9,null,null,null,null,null,null,null,9]
[null,null,null,null,null,null,10,null,null,null,null,null,null,null,10]
[]
[null,null,null,null,null,null,"【浸透トレンチ】","単位設計浸透能（ｍ3/ｈｒ/m）",null,"設置数量\n（ｍ）","影響係数",null,null,null,"【浸透トレンチ】\n1mあたり","浸透管部","砕石部"]
[null,null,null,null,null,null,null,"比浸透量（㎡）","飽和透水係数\n（m/hr）",null,"（1）","（2）","（3）",null,null,"体積\n（ｍ3）","体積\n（ｍ3）","空隙率\n（％）"]
[null,null,null,null,null,null,null,null,null,null,"内容（１）","内容（２）","内容（３）"]
[null,null,null,null,null,null,1,2.8935,6.2136000000000004E-2,1.5,0.9,0.9,1,null,1,1.5707963267948967E-2,0.22886336462664786,35]
[null,null,null,null,null,null,2,null,null,null,null,null,null,null,2]
[null,null,null,null,null,null,3,null,null,null,null,null,null,null,3]
[null,null,null,null,null,null,4,null,null,null,null,null,null,null,4]
[null,null,null,null,null,null,5,null,null,null,null,null,null,null,5]
[null,null,null,null,null,null,6,null,null,null,null,null,null,null,6]
[null,null,null,null,null,null,7,null,null,null,null,null,null,null,7]
[null,null,null,null,null,null,8,null,null,null,null,null,null,null,8]
[null,null,null,null,null,null,9,null,null,null,null,null,null,null,9]
[null,null,null,null,null,null,10,null,null,null,null,null,null,null,10]
[]
[null,null,null,null,null,null,"【透水性舗装】","単位設計浸透能（ｍ3/ｈｒ/㎡）",null,"設置数量\n（㎡）","影響係数",null,null,null,"【透水性塗装】\n1m2あたり","体積\n（ｍ3）","空隙率\n（％）"]
[null,null,null,null,null,null,null,"比浸透量（㎡）","飽和透水係数\n（m/hr）",null,"（1）","（2）","（3）"]
[null,null,null,null,null,null,null,null,null,null,"内容（１）","内容（２）","内容（３）"]
[null,null,null,null,null,null,1,null,null,null,1,1,1,null,1]
[null,null,null,null,null,null,2,null,null,null,1,1,1,null,2]
[null,null,null,null,null,null,3,null,null,null,1,1,1,null,3]
[null,null,null,null,null,null,4,null,null,null,1,1,1,null,4]
[null,null,null,null,null,null,5,null,null,null,1,1,1,null,5]
[null,null,null,null,null,null,6,null,null,null,1,1,1,null,6]
[null,null,null,null,null,null,7,null,null,null,1,1,1,null,7]
[null,null,null,null,null,null,8,null,null,null,1,1,1,null,8]
[null,null,null,null,null,null,9,null,null,null,1,1,1,null,9]
[null,null,null,null,null,null,10,null,null,null,1,1,1,null,10]
[]
[null,null,null,null,null,null,"【その他】","単位設計浸透能（ｍ3/ｈｒ/単位）",null,"設置数量\n（単位）","影響係数",null,null,null,"【その他】\n1単位あたり","体積\n（ｍ3）","空隙率\n（％）"]
[null,null,null,null,null,null,null,"比浸透量（㎡）","飽和透水係数\n（m/hr）",null,"（1）","（2）","（3）"]
[null,null,null,null,null,null,null,null,null,null,"内容（１）","内容（２）","内容（３）"]
[null,null,null,null,null,null,1,null,null,null,1,1,1,null,1]
[null,null,null,null,null,null,2,null,null,null,1,1,1,null,2]
[null,null,null,null,null,null,3,null,null,null,1,1,1,null,3]
[null,null,null,null,null,null,4,null,null,null,1,1,1,null,4]
[null,null,null,null,null,null,5,null,null,null,1,1,1,null,5]
[null,null,null,null,null,null,6,null,null,null,1,1,1,null,6]
[null,null,null,null,null,null,7,null,null,null,1,1,1,null,7]
[null,null,null,null,null,null,8,null,null,null,1,1,1,null,8]
[null,null,null,null,null,null,9,null,null,null,1,1,1,null,9]
[null,null,null,null,null,null,10,null,null,null,1,1,1,null,10]
[]
[]
[null,"調節計算結果"]
[]
[null,null,"最大流入量（行為後）",4.1464000000000001E-2,"m3/s"]
[null,null,"最大放流量",1.3020624612903839E-2,"m3/s","＜","許容放流量",1.38E-2,"m3/s"]
[null,null,"池内最大水深",0.99097878433663511,"ｍ"]
[null,null,"池内最大ボリューム",59.458727060198107,"m3"]

{"sheet":"様式7","index":15,"n_rows":61,"n_cols":17,"rows_kept":61,"cut":false,"hidden":false,"merged":[[4,3,4,17],[50,6,50,9],[51,6,51,9],[52,6,52,9],[18,9,19,9],[19,4,20,8],[20,9,21,9],[22,9,23,9],[24,9,25,9],[43,4,44,16]]}
[null,null,"●必要事項を記入してください。"]
[]
[null,null,null,null,null,null,null,null,null,null,null,null,null,null,null,null,"様式－７"]
[null,null,null,null,null,null,null,null,null,null,null,null,null,null,"№"]
[null,null,null,"雨 水 浸 透 阻 害 行 為 許 可 事 前 相 談 書"]
[]
[]
[null,null,null,null,"事前相談日時",null,null,null,null,"　　　○○年○○月○○日（○）XX：XX～　　："]
[]
[]
[null,null,null,null,"事業区域に含まれる地域の名称",null,null,null,null,"　　　○○市○○町100番地、101番地、102番地"]
[]
[]
[null,null,null,null,"事業区域の面積",null,null,null,null,"　　　1,290㎡（0.1290ha）"]
[]
[]
[null,null,null,null,"予定する事業の計画の内容",null,null,null,null,"　　　分譲住宅（3宅地）の宅地造成"]
[]
[null,null,null,null,null,null,null,null,null,"住　所",null,"○○市○○町１－１－１"]
[null,null,null,null,"事業主又は建築主等の住所・氏名",null,null,null,null,null,null,"○○○○住宅建設株式会社"]
[null,null,null,null,null,null,null,null,null,"氏　名",null,"代表取締役　　○○　○○"]
[]
[null,null,null,null,null,null,null,null,null,"住　所"]
[null,null,null,null,null,null,null,null,null,null,null,"○○市○○町１－１－１"]
[null,null,null,null,"代理人等の住所・氏名・連絡先",null,null,null,null,"氏　名",null,"○○○設計事務所株式会社"]
[]
[null,null,null,null,null,null,null,null,null,"連絡先",null,"XXX(XXX)XXXX",null,null,"担当者名　○○"]
[null,null,null,null,"（注）事前相談には、次の図書を添付してください。"]
[null,null,null,null,1,"行為区域位置図（図面－１）"]
[null,null,null,null,2,"行為区域図（図面－２）"]
[null,null,null,null,3,"現況平面図（行為前）（図面－３）"]
[null,null,null,null,4,"現況土地利用求積図（行為前）（図面－４）"]
[null,null,null,null,5,"土地利用計画図（行為後）（図面－５）"]
[null,null,null,null,6,"土地利用計画求積図（行為後）（図面－６）"]
[null,null,null,null,7,"現況土地利用区分面積集計表（行為前）（様式－１）"]
[null,null,null,null,8,"計画土地利用区分面積集計表（行為後）（様式－２）"]
[null,null,null,null,9,"行為前後の土地利用集計表（様式－３）"]
[null,null,null,null,10,"土地の登記事項を示す書類（全部事項証明書の写し）（資料－1）"]
[null,null,null,null,11,"公図の写し（資料－２）"]
[null,null,null,null,12,"事業概要書、事業概要図（資料－４）"]
[null,null,null,null,13,"現況写真（写真撮影位置を添付）（資料－５）"]
[null,null,null,null,14,"その他必要な資料（委任状、印鑑証明の写し、同意書の写し）（資料－６）"]
[null,null,null,null,15,"工程表（資料－７）"]
[null,null,null,null,"　この事前相談は、雨水浸透阻害行為許可の申請の要否についてのみ判断するもので、法令等に基づく審査を行うものではありません。"]
[]
[]
[]
[null,null,null,null,"※処理欄"]
[null,null,null,null,null,null,null,null,null,null,null,null,null,null,"事前相談担当者名"]
[]
[null,null,null,null,null,null,"雨水浸透阻害行為面積",null,null,null,null,null,null,null,"㎡"]
[null,null,null,null,null,null,"雨水浸透阻害行為許可申請",null,null,null,null,"（　　要　　・　　不要　　）"]
[null,null,null,null,null,null,"許可申請不要の理由"]
[]
[]
[null,null,null,null,null,null,"備　考"]
[]
[]
[null,null,null,null,null,null,"結果の連絡",null,null,"　　　　年　　月　　日　済　（□℡　□来庁）"]
[null,null,null,null,null,null,null,null,null,"連絡した相手名"]
[null,null,null,null,"※印欄は記入しない"]

{"sheet":"様式8","index":16,"n_rows":66,"n_cols":15,"rows_kept":66,"cut":false,"hidden":false,"merged":[[4,2,4,14],[21,3,21,4],[12,6,12,7],[14,3,14,4],[15,6,15,7],[15,8,15,14],[11,3,11,4],[17,3,17,4],[17,6,17,14],[11,6,11,14],[14,6,14,14],[21,6,23,14],[7,3,10,14],[41,6,42,14],[24,6,24,14],[25,6,25,14],[27,3,27,4],[27,6,29,14],[30,6,31,14],[33,3,33,4],[33,6,34,14],[36,3,36,4],[36,6,37,14],[38,6,38,14],[39,6,39,14],[40,6,40,14],[44,3,44,4],[44,6,47,14],[49,3,49,4],[49,6,50,14],[54,2,54,8],[54,9,54,12],[54,13,54,14],[55,2,55,6],[55,7,55,8],[55,9,55,12],[55,13,55,14],[56,2,56,6],[56,7,56,8],[56,9,56,12],[56,13,56,14],[57,2,57,6],[57,7,57,8],[57,9,57,12],[57,13,57,14],[58,2,58,6],[58,7,58,8],[58,9,58,12],[58,13,58,14],[59,7,59,8],[59,9,59,12],[59,13,60,14],[60,2,60,6],[60,7,60,8],[60,9,60,12],[59,2,59,6],[63,2,63,6],[63,7,64,8],[63,9,64,12],[63,13,63,14],[64,2,64,6],[64,13,64,14],[61,2,62,6],[61,7,62,8],[61,9,61,12],[61,13,62,14],[62,9,62,12],[65,2,65,6],[65,7,66,8],[65,9,66,12],[65,13,65,14],[66,2,66,6],[66,13,66,14]]}
[null,"●必要事項を記入してください。"]
[]
[null,null,null,null,null,null,null,null,null,null,null,null,null,null,"様式－8"]
[]
[null,null,"雨水貯留浸透施設の管理に関する実施計画書"]
[null,null,"                           "]
[]
[null,null,null,"　特定都市河川浸水被害対策法第３条により特定都市河川流域の指定を受けた流域において、法第３０条「雨水浸透阻害行為の許可」を受けるにあたり法第３２条（許可の基準）に基づく対策工事として設置した雨水貯留浸透施設の機能を十分に発揮・維持させるため、下記に基づき管理を実施する。"]
[]
[]
[]
[null,null,null,"第１条",null,null," この実施計画書の対象とする雨水貯留浸透施設の名称は、次のとおりとする。"]
[null,null,null,null,null,null,"名称",null,"○○市○○町１－１－１"]
[]
[null,null,null,"第２条",null,null," この実施計画書の対象とする雨水貯留浸透施設は、次に所在するものとする。"]
[null,null,null,null,null,null,"所在地",null,"○○市○○町１－１－１"]
[]
[null,null,null,"第３条",null,null," この実施計画書を実施する責任者（実質管理者）は以下の者とする。"]
[null,null,null,null,null,null,null,"氏名","○○○○住宅建設株式会社　○○○○"]
[null,null,null,null,null,null,null,"連絡先（電話）",null,null,"XXX(XXX)XXXX"]
[]
[null,null,null,"第４条",null,null," この実施計画書において雨水貯留浸透施設とは、雨水浸透阻害行為による流出雨水量の増加を抑制するために施工した雨水を一時的に貯留し、又は浸透させる施設をいい、具体的には、貯留機能又は浸透機能を発揮するための敷地、周囲提、排水口、浸透ます、浸透トレンチ、透水性舗装をいう。"]
[]
[]
[null,null,null,null,null,"２","　雨水貯留浸透施設の位置、範囲及び機能の概要は、別図のとおりとする。"]
[null,null,null,null,null,null,"　（別図：平面図、標準横断図、構造図）"]
[]
[null,null,null,"第５条",null,null,"　管理者は雨水貯留浸透施設に関し、その機能を維持する上で必要な範囲内において、別表に示す点検作業（定期点検、緊急点検、機能点検）を実施するとともに、点検作業で必要が認められた場合には清掃、修繕工事等を行うものとする。"]
[]
[]
[null,null,null,null,null,"２","　また、維持管理作業の内容は、施設台帳や維持管理記録により保管するとともに、その後の維持管理に役立てるものとする。"]
[]
[]
[null,null,null,"第６条",null,null,"　雨水貯留浸透施設の管理者を変更する場合や管理者を複数に分割する場合は、新たな管理者が当該施設の維持管理を引き継ぐこととする。"]
[]
[]
[null,null,null,"第７条",null,null,"　雨水貯留浸透施設の機能を損なうおそれのある以下の行為を行う場合には法第３９条に基づいてあらかじめ都道府県知事の許可を得るものとする。"]
[]
[null,null,null,null,null,null,"・雨水貯留浸透施設の全部又は一部の埋め立て"]
[null,null,null,null,null,null,"・雨水貯留浸透施設の敷地である土地の区域における建築物等の新築、改築又は増築"]
[null,null,null,null,null,null,"・雨水貯留浸透施設が設置されている建築物等の改築又は除去"]
[null,null,null,null,null,null,"・そのほか雨水貯留浸透施設が有する雨水を一時的に貯留し、又は地下に浸透させる機能を阻害するおそれのある行為"]
[]
[]
[null,null,null,"第８条",null,null,"　宅地又は、建物の売買にあたっては、宅地建物取引業法に基づく手続きの際に、雨水貯留浸透施設の機能を阻害するおそれのある行為（法第３９条）を行う場合は許可が必要であること、および標識の移転等の行為（法第３８条第５項）を行う場合は設置者の承諾が必要であることを重要事項説明（宅地建物取引業法第３５条）に明記するものとする。"]
[]
[]
[]
[]
[null,null,null,"第９条",null,null,"　対策工事に伴い設置する雨水貯留浸透施設の存在と維持管理者を表示した標識の保全に努めるものとする。"]
[]
[]
[]
[null,null,"別表"]
[null,null,"分　　　　　　類",null,null,null,null,null,null,"作　　業　　内　　容",null,null,null,"頻　　　　度"]
[null,null,"点検作業",null,null,null,null,"定期点検",null,"・破損、陥没、変形、蓋のずれ等の状況確認",null,null,null,"年１回以上"]
[null,null,null,null,null,null,null,null,null,"・ゴミ、土砂、枯れ葉等の堆積状況確認"]
[null,null,null,null,null,null,null,null,null,"・樹根の進入状態の確認"]
[null,null,null,null,null,null,null,"緊急点検",null,"・点検の内容は定期点検と同様",null,null,null,"地震時"]
[null,null,null,null,null,null,null,"機能点検",null,"・機能の評価（簡易浸透試験）",null,null,null,"定期点検の結果より必要に応じて代表施設で実施"]
[]
[null,null,"清掃・修繕工事等",null,null,null,null,"清掃・土砂搬出等",null,"・清掃、樹根の除去",null,null,null,"点検作業で必要が認められた場合に実施"]
[null,null,null,null,null,null,null,null,null,"・土砂搬出等の通常の清掃作業"]
[null,null,null,null,null,null,null,"修繕・補修工事等",null,"・破損、陥没箇所及び劣化損耗箇所の補修･修繕･改良工事"]
[]
[null,null,null,null,null,null,null,"機能回復作業",null,"・透水シートの交換洗浄・砕石の人力による洗浄又は高圧洗浄"]